bitfinex/quotes_ETHUSD_20250822
["timestamp","ask_amount","ask_price","bid_price","bid_amount"]
[1755869828056,0.4737,4270.7,4270.0,2.34190542]
[1755869828416,0.4737,4270.7,4269.8,3.0]
[1755869828616,0.4737,4270.7,4269.0,16.22015754]
[1755869828857,0.4737,4270.7,4269.1,1.63369575]
[1755869829222,0.4737,4270.7,4268.3,16.22015754]
[1755869829423,2.81524623,4270.7,4268.6,2.34264635]
[1755869829645,2.81524623,4270.7,4268.3,18.5630054]
[1755869829646,0.433,4270.6,4268.3,16.22015754]
[1755869829855,0.36649302,4270.3,4268.3,16.22015754]
[1755869830046,0.36649302,4270.3,4268.8,2.34252442]
[1755869830243,0.433,4270.2,4268.3,16.22015754]
[1755869830446,0.433,4270.2,4269.3,2.3422626]
[1755869830648,0.433,4270.2,4269.6,2.34209343]
[1755869830960,0.02,4270.8,4269.7,2.34206651]
[1755869831259,0.36647033,4270.1,4270.0,3.00192037]
[1755869831447,0.02,4270.8,4269.9,0.66]
[1755869831645,0.366449,4270.1,4269.1,3.0]
[1755869831845,0.799449,4270.1,4269.2,0.66]
[1755869832048,0.02,4270.8,4270.7,2.34153651]
[1755869832226,0.0192,4270.8,4270.7,3.00153651]
[1755869832425,0.0192,4270.8,4270.7,6.00153651]
[1755869832660,0.0192,4270.8,4270.7,8.36367614]
[1755869833673,0.0192,4270.8,4270.7,3.0]
[1755869833995,0.0192,4270.8,4270.7,5.34153651]
[1755869834145,0.0192,4270.8,4269.9,3.0]
[1755869834349,0.4522,4270.8,4270.5,2.34164119]
[1755869834545,0.4522,4270.8,4269.1,0.1168]
[1755869834546,0.433,4270.7,4269.1,0.1168]
[1755869834772,0.433,4270.7,4268.7,0.17856235]
[1755869835088,0.36644592,4270.4,4268.6,16.22015754]
[1755869835253,0.433,4270.3,4268.6,0.17505038]
[1755869835452,0.433,4270.3,4269.4,2.34222107]
[1755869835664,0.433,4270.3,4268.6,16.22015754]
[1755869835842,0.433,4270.3,4268.7,1.62201575]
[1755869836048,0.433,4270.3,4268.3,0.004]
[1755869836283,0.433,4270.3,4268.3,0.18215928]
[1755869836581,0.36653407,4269.9,4268.3,0.004]
[1755869836884,0.36653407,4269.9,4268.4,0.02342798]
[1755869837048,0.433,4269.8,4268.3,0.004]
[1755869837360,0.433,4269.8,4268.9,2.34251556]
[1755869837560,0.433,4269.8,4268.7,2.34263358]
[1755869837765,0.433,4269.8,4268.6,2.34267355]
[1755869838055,0.433,4269.8,4268.3,0.17580925]
[1755869838244,0.433,4269.8,4268.4,0.02342798]
[1755869838445,0.433,4269.8,4268.3,2.34680339]
[1755869838446,0.433,4269.8,4268.3,0.004]
[1755869838849,0.433,4269.8,4268.3,2.34683049]
[1755869839045,0.433,4269.8,4268.3,0.004]
[1755869840085,3.0,4269.6,4268.3,0.004]
[1755869840286,3.49920986,4269.5,4268.3,0.004]
[1755869840473,3.0,4269.3,4268.2,0.004]
[1755869840779,0.49920986,4269.2,4267.8,0.02]
[1755869840994,0.66,4268.9,4267.8,0.02]
[1755869841196,2.36213963,4268.8,4267.8,0.02]
[1755869841398,0.49920986,4268.7,4267.8,0.02]
[1755869841560,0.433,4268.7,4267.8,0.02]
[1755869842068,0.366674,4268.5,4267.8,0.02]
[1755869842667,0.433,4268.4,4267.8,0.02]
[1755869843977,0.366674,4268.5,4268.4,2.34279823]
[1755869844279,0.366674,4268.5,4267.8,2.36312165]
[1755869844471,0.366674,4268.5,4268.2,2.34286318]
[1755869844472,0.365874,4268.5,4268.2,2.34286318]
[1755869844671,0.365874,4268.5,4268.4,2.34279823]
[1755869844879,0.365874,4268.5,4267.9,0.23631217]
[1755869844880,0.798874,4268.5,4267.9,0.23631217]
[1755869845192,0.798874,4268.5,4267.8,0.02]
[1755869845193,0.433,4268.4,4267.8,0.02]
[1755869845399,0.49920986,4269.5,4269.4,2.34224949]
[1755869845697,0.2495,4270.5,4269.5,3.0]
[1755869845997,0.2495,4270.5,4269.7,0.66]
[1755869846183,0.2495,4270.5,4269.6,2.1796673]
[1755869846184,0.2495,4270.5,4269.6,2.15624591]
[1755869846386,0.2495,4270.5,4269.7,2.34208492]
[1755869846600,0.433,4270.4,4268.9,0.66]
[1755869846797,0.433,4270.4,4268.1,0.66]
[1755869846973,0.433,4270.4,4268.4,0.66]
[1755869847314,0.433,4270.4,4268.8,2.3425784]
[1755869847468,0.433,4270.4,4268.9,0.02342523]
[1755869847669,0.433,4270.4,4268.7,2.3425882]
[1755869847900,0.433,4270.4,4268.8,0.02342578]
[1755869848065,0.20220722,4270.3,4268.8,0.02342578]
[1755869848413,0.433,4270.2,4268.2,5.22232223]
[1755869848712,0.433,4270.2,4269.3,2.34229502]
[1755869849013,0.433,4270.2,4269.0,2.34242657]
[1755869849165,0.433,4270.2,4268.3,3.0]
[1755869849371,0.433,4270.2,4269.0,2.34245996]
[1755869849610,0.36652336,4270.1,4269.0,2.34245996]
[1755869849820,0.36652336,4270.1,4268.4,2.34279823]
[1755869850115,0.36652336,4270.1,4269.3,2.34227525]
[1755869850314,0.36652336,4270.1,4269.4,0.02342249]
[1755869850468,0.36652336,4270.1,4268.9,3.66]
[1755869850766,0.2495,4270.5,4268.9,3.00251735]
[1755869850969,0.433,4270.4,4269.0,3.0]
[1755869851299,0.433,4270.4,4269.1,0.6]
[1755869851600,0.433,4270.4,4269.2,0.02342359]
[1755869851780,0.433,4270.4,4269.6,2.34212206]
[1755869852096,0.433,4270.4,4269.7,0.02342084]
[1755869852298,0.433,4270.4,4269.2,0.02342359]
[1755869852502,0.2495,4270.5,4270.1,2.34185312]
[1755869852798,0.2495,4270.5,4269.3,2.07147652]
[1755869852998,1.04896642,4270.5,4269.9,2.34196591]
[1755869853300,1.04896642,4270.5,4269.3,2.07147652]
[1755869853607,0.61596642,4270.5,4269.4,2.36567198]
[1755869853905,0.2495,4270.5,4270.4,6.00170101]
[1755869854210,0.2495,4270.5,4270.4,6.14890101]
[1755869854411,0.001,4271.7,4271.2,3.0012624]
[1755869854569,0.02,4272.8,4272.1,18.56092671]
[1755869854770,0.02,4272.8,4272.7,2.34044047]
[1755869854967,0.02,4273.8,4273.4,2.34005709]
[1755869855195,0.02,4273.8,4273.4,2.36345766]
[1755869855568,0.02,4273.8,4273.4,2.34005709]
[1755869856178,0.02,4273.8,4271.7,0.1168]
[1755869856179,0.434,4273.5,4271.7,0.1168]
[1755869856377,0.434,4273.5,4269.5,3.08589219]
[1755869856378,0.66,4273.4,4271.1,2.34130574]
[1755869856599,0.4322,4273.3,4270.3,2.34175584]
[1755869856775,0.19295527,4273.2,4270.8,2.34142695]
[1755869857105,0.19295527,4273.2,4271.1,2.34131108]
[1755869857409,0.19295527,4273.2,4270.4,1.85619134]
[1755869857410,2.34026933,4273.1,4270.8,2.34143107]
[1755869857710,3.50198016,4273.0,4270.4,1.85619134]
[1755869857905,1.02930792,4273.2,4270.4,1.85619134]
[1755869857906,0.50198016,4272.9,4270.9,2.34141145]
[1755869858075,0.36633889,4272.7,4270.7,2.3415084]
[1755869858276,0.02,4271.8,4270.8,0.02]
[1755869858501,0.02,4271.8,4270.9,2.3414139]
[1755869858802,0.02,4271.8,4270.8,0.02]
[1755869859900,0.02,4271.8,4270.8,2.36143214]
[1755869860408,0.3663587,4271.7,4270.8,0.02]
[1755869860607,0.4459,4271.6,4270.8,0.02]
[1755869860903,0.3663587,4271.7,4271.0,2.34137204]
[1755869861105,0.3663587,4271.7,4271.1,0.02341317]
[1755869861292,0.3663587,4271.7,4271.2,2.3412624]
[1755869861476,0.3663587,4271.7,4271.3,2.34119243]
[1755869861675,0.3663587,4271.7,4271.4,0.02341152]
[1755869861886,0.3663587,4271.7,4271.0,2.34136931]
[1755869862100,0.3663587,4271.7,4270.9,2.34142686]
[1755869862405,0.3663587,4271.7,4270.8,0.02]
[1755869862607,0.4459,4271.6,4270.8,0.02]
[1755869863836,0.02,4271.8,4270.9,0.02341426]
[1755869863978,0.02,4271.8,4271.4,2.34113073]
[1755869864321,0.02,4271.8,4271.7,2.34098836]
[1755869864807,0.02,4271.8,4271.4,0.23411307]
[1755869865015,0.02,4271.8,4270.8,0.02]
[1755869865178,0.02,4271.8,4271.5,2.34108436]
[1755869865382,0.02,4271.8,4270.8,0.02]
[1755869865620,0.02,4271.8,4271.0,2.34132804]
[1755869865912,0.02,4271.8,4270.8,0.02]
[1755869866419,0.02,4271.8,4270.9,2.34142686]
[1755869866581,0.02,4271.8,4270.8,0.02]
[1755869866907,0.02,4271.8,4270.9,0.68341426]
[1755869867112,0.02,4271.8,4271.5,2.34105078]
[1755869867427,0.02,4271.8,4271.7,2.34098836]
[1755869867586,0.02,4271.8,4271.1,2.34126462]
[1755869867794,0.02,4271.8,4271.5,2.34109693]
[1755869867990,0.02,4271.8,4271.4,2.34114948]
[1755869868191,0.02,4271.8,4271.7,2.34098836]
[1755869868398,0.02,4271.8,4271.7,2.5750872]
[1755869868589,0.02,4271.8,4271.7,3.2350872]
[1755869868787,0.02,4271.8,4271.7,6.2350872]
[1755869869008,0.0192,4271.8,4271.7,6.2350872]
[1755869869207,0.0192,4271.8,4271.7,5.5750872]
[1755869869427,0.0192,4271.8,4270.6,0.66]
[1755869869591,0.0192,4271.8,4270.2,3.0]
[1755869870095,0.0192,4271.8,4270.7,0.66]
[1755869870291,0.0192,4271.8,4271.2,2.34124418]
[1755869870882,0.0192,4271.8,4270.8,2.36142688]
[1755869871097,0.0192,4271.8,4270.8,0.02]
[1755869871334,0.4459,4271.7,4270.8,0.02]
[1755869872136,0.4459,4271.7,4270.9,0.02341426]
[1755869872632,0.0192,4271.8,4270.9,0.23849178]
[1755869872839,0.0192,4271.8,4271.4,2.34115235]
[1755869873246,0.0192,4271.8,4271.5,0.02341097]
[1755869873403,0.0192,4271.8,4271.7,2.34098836]
[1755869873605,0.4651,4271.8,4271.1,2.34131416]
[1755869873921,0.4651,4271.8,4271.2,2.34122348]
[1755869874324,0.4651,4271.8,4270.8,0.02]
[1755869874636,0.0192,4271.8,4271.5,2.34105864]
[1755869874934,0.4651,4271.8,4271.4,2.34113736]
[1755869875437,0.4651,4271.8,4271.5,2.34109334]
[1755869875939,0.4651,4271.8,4271.7,2.34098836]
[1755869875940,0.0192,4271.8,4271.7,2.34098836]
[1755869876134,0.0192,4271.8,4270.9,0.66]
[1755869876337,0.4651,4271.8,4271.0,100.0]
[1755869877330,0.4651,4271.8,4271.1,0.02341317]
[1755869877529,0.0192,4271.8,4271.0,102.34137201]
[1755869877732,0.0192,4271.8,4271.1,2.34131005]
[1755869877909,0.0192,4271.8,4271.0,100.0]
[1755869878109,0.0192,4271.8,4271.0,102.36213963]
[1755869878328,0.0192,4271.8,4271.4,2.3411444]
[1755869878646,0.0192,4271.8,4271.7,2.34098836]
[1755869878850,0.0192,4271.8,4271.7,3.17239824]
[1755869879058,0.001,4272.3,4272.2,6.00071438]
[1755869879223,0.001,4272.3,4272.2,6.83486514]
[1755869879410,0.001,4272.3,4272.2,6.98286514]
[1755869879608,0.001,4272.3,4272.2,6.83486514]
[1755869879914,0.001,4272.3,4272.2,6.17486514]
[1755869880244,0.001,4272.3,4271.6,0.66]
[1755869880406,0.001,4272.3,4272.2,2.34071438]
[1755869880611,0.001,4273.5,4273.4,2.34005709]
[1755869880911,0.001,4273.5,4273.4,2.36345766]
[1755869881117,0.0002,4273.5,4273.4,2.36345766]
[1755869881315,0.0002,4273.5,4273.4,6.13381702]
[1755869881532,0.0002,4273.5,4273.4,6.11041645]
[1755869882545,0.4461,4273.5,4272.2,0.66]
[1755869882758,0.4461,4273.5,4273.2,2.34016602]
[1755869882977,0.0002,4273.5,4272.5,2.34055002]
[1755869883245,0.0002,4273.5,4273.3,2.34010524]
[1755869883455,0.0002,4273.5,4272.9,2.34028644]
[1755869883615,0.4459,4273.4,4273.0,2.34027459]
[1755869883817,0.4459,4273.4,4272.5,3.0]
[1755869883818,0.4459,4273.3,4272.5,5.34054693]
[1755869884045,0.0002,4273.5,4273.2,2.34016661]
[1755869884217,0.0002,4273.5,4273.3,2.34010516]
[1755869884417,0.0002,4273.5,4273.0,2.34025003]
[1755869884667,0.4459,4273.4,4271.9,2.34086991]
[1755869884972,0.4459,4273.4,4271.3,2.34120254]
[1755869885117,0.4459,4273.4,4272.5,2.34053415]
[1755869885316,0.4459,4273.4,4272.7,2.34044047]
[1755869885541,0.4459,4273.4,4273.0,2.34025363]
[1755869885814,0.4459,4273.4,4272.8,0.02340385]
[1755869886141,0.0002,4273.5,4272.8,0.1732262]
[1755869886315,0.0002,4273.5,4273.4,2.34005709]
[1755869886517,0.0002,4273.5,4273.4,5.5740628]
[1755869887427,0.0002,4273.5,4272.8,0.17801695]
[1755869887428,0.4461,4273.5,4271.4,0.81112025]
[1755869887632,0.4461,4273.5,4271.5,0.02341097]
[1755869887971,0.4461,4273.5,4271.7,3.0]
[1755869888172,0.4461,4273.5,4271.1,16.15126055]
[1755869888173,0.4461,4273.5,4271.9,2.34086447]
[1755869888317,0.4461,4273.5,4272.2,2.34070809]
[1755869888517,0.4461,4273.5,4271.4,2.3411432]
[1755869888518,0.4461,4273.5,4272.0,5.34077727]
[1755869888722,0.4461,4273.5,4271.1,16.15126055]
[1755869888723,0.4461,4273.5,4271.5,0.17589961]
[1755869888935,0.4461,4273.5,4271.5,0.25171512]
[1755869889144,0.4461,4273.5,4271.5,2.5927878]
[1755869889358,0.4461,4273.5,4271.8,2.3409318]
[1755869889808,0.4461,4273.5,4271.0,102.36213963]
[1755869889921,1.28245265,4273.5,4271.8,2.34093113]
[1755869890258,1.17112112,4273.4,4271.7,2.3409745]
[1755869890443,1.17112112,4273.4,4271.8,0.02340933]
[1755869890640,0.4586,4273.3,4271.0,100.0]
[1755869890828,0.83635265,4272.2,4271.0,100.0]
[1755869891031,0.83635265,4271.9,4271.0,100.0]
[1755869891236,1.18557843,4271.8,4271.0,100.0]
[1755869891421,2.34110576,4271.5,4271.0,100.0]
[1755869891626,0.4586,4271.7,4271.0,100.0]
[1755869891627,30.96145533,4271.4,4271.0,90.07780217]
[1755869891853,6.83766987,4271.1,4271.0,84.19347613]
[1755869892054,1.79780798,4271.1,4271.0,84.19347613]
[1755869892256,0.4586,4271.1,4271.0,84.19347613]
[1755869892421,36.45991722,4271.1,4271.0,84.19347613]
[1755869892618,34.62145533,4271.1,4271.0,83.23917868]
[1755869892824,3.96145533,4271.1,4271.0,83.23917868]
[1755869893064,4.44123613,4271.1,4271.0,83.23917868]
[1755869893459,4.44043613,4271.1,4271.0,83.23917868]
[1755869893622,3.50285533,4271.1,4271.0,83.23917868]
[1755869893831,3.0,4271.1,4271.0,83.23917868]
[1755869894239,0.83635265,4272.4,4271.0,83.70757868]
[1755869894418,0.50211412,4272.6,4271.1,0.02341317]
[1755869894653,2.34005709,4273.4,4271.1,0.02341317]
[1755869894963,0.83635265,4272.9,4271.0,83.23917868]
[1755869895182,0.66,4272.4,4271.0,83.23917868]
[1755869895324,0.4586,4272.3,4271.0,83.23917868]
[1755869895523,3.0,4272.0,4271.0,83.23917868]
[1755869895724,0.66,4271.8,4271.0,83.23917868]
[1755869895920,2.34109797,4271.5,4271.0,83.23917868]
[1755869896134,3.96071412,4271.4,4271.0,83.23917868]
[1755869896358,0.96071412,4271.3,4271.0,83.23917868]
[1755869896536,0.4586,4271.2,4271.0,83.23917868]
[1755869896954,0.4586,4271.1,4271.0,83.23917868]
[1755869897154,0.99842406,4271.7,4271.0,83.23917868]
[1755869897155,3.16207141,4271.7,4271.0,83.23917868]
[1755869897376,0.925227,4271.6,4271.0,83.23917868]
[1755869897529,0.16207141,4271.7,4271.0,83.23917868]
[1755869897731,0.66418553,4271.7,4271.0,83.23917868]
[1755869897935,0.66,4271.5,4271.0,83.23917868]
[1755869898154,0.4586,4271.4,4271.0,83.23917868]
[1755869898353,0.4586,4271.3,4271.0,83.23917868]
[1755869898528,0.33018688,4271.2,4271.0,83.23917868]
[1755869898735,0.16207141,4271.7,4271.0,83.23917868]
[1755869898736,0.50211412,4271.7,4271.0,83.23917868]
[1755869898950,0.50211412,4272.5,4271.0,83.23917868]
[1755869899159,2.79910144,4272.6,4271.0,83.23917868]
[1755869899465,2.34060481,4272.4,4271.0,83.23917868]
[1755869899638,2.34101148,4271.7,4271.0,83.23917868]
[1755869899839,0.66,4271.5,4271.0,83.23917868]
[1755869900071,2.34131722,4271.1,4271.0,83.23917868]
[1755869900378,6.45991722,4271.1,4271.0,80.18614308]
[1755869900535,6.96134189,4271.1,4271.0,77.77907658]
[1755869901166,36.96134189,4271.1,4271.0,77.77907658]
[1755869901462,37.564086,4271.1,4271.0,77.77907658]
[1755869901664,37.564086,4271.1,4271.0,77.78307658]
[1755869901964,5.22276878,4271.1,4271.0,77.78307658]
[1755869902139,0.50142467,4271.1,4271.0,77.78307658]
[1755869902343,0.4586,4271.7,4271.0,77.78307658]
[1755869902544,2.34119566,4271.4,4271.0,77.78307658]
[1755869902745,0.95947506,4271.3,4271.0,77.78307658]
[1755869903082,5.34131722,4271.1,4271.0,77.78307658]
[1755869903279,6.50219228,4271.1,4271.0,77.78307658]
[1755869903465,6.96079228,4271.1,4271.0,77.78307658]
[1755869903771,1.61947506,4271.1,4271.0,77.78307658]
[1755869903959,1.1186,4271.1,4271.0,77.78307658]
[1755869904268,0.50087506,4271.1,4271.0,77.78307658]
[1755869904570,0.66,4271.6,4271.0,77.78307658]
[1755869904774,0.66,4271.5,4271.0,77.78307658]
[1755869904973,3.66,4271.5,4271.0,77.78307658]
[1755869905176,1.14651418,4271.4,4271.0,77.78307658]
[1755869905379,2.3411201,4271.5,4271.0,77.78307658]
[1755869905551,2.3403201,4271.5,4271.0,77.78307658]
[1755869905755,0.4586,4272.3,4271.0,77.78307658]
[1755869905965,7.82635265,4272.6,4271.0,77.78307658]
[1755869905966,0.50036062,4272.5,4271.0,78.25147658]
[1755869906456,0.4586,4273.0,4271.0,78.25147658]
[1755869906648,0.001,4272.5,4271.0,77.78307658]
[1755869906840,2.3409683,4271.8,4271.0,77.78307658]
[1755869907041,5.5750925,4271.7,4271.0,77.78307658]
[1755869907242,0.66,4271.6,4271.0,77.78307658]
[1755869907470,0.66,4271.7,4271.0,77.78307658]
[1755869907672,3.00103879,4271.7,4271.0,77.78307658]
[1755869907981,0.66,4272.4,4271.0,77.78307658]
[1755869908280,2.34072775,4272.2,4271.0,80.14521621]
[1755869908443,0.001,4272.5,4271.0,77.78307658]
[1755869908646,0.661,4272.5,4271.0,77.78307658]
[1755869908872,2.34104712,4271.6,4271.0,77.78307658]
[1755869909275,2.34131722,4271.1,4271.0,77.78307658]
[1755869909570,0.23413172,4271.1,4271.0,77.78307658]
[1755869909796,3.0,4271.8,4271.0,77.78307658]
[1755869910006,2.34090392,4271.9,4271.0,77.78307658]
[1755869910214,2.34103918,4271.7,4271.0,77.78307658]
[1755869910415,2.34073061,4272.2,4271.0,77.78307658]
[1755869910592,3.0006718,4272.3,4271.0,77.78307658]
[1755869910799,3.0,4272.1,4271.0,77.78307658]
[1755869911114,1.10075808,4272.2,4271.0,77.78307658]
[1755869911115,0.60016718,4272.2,4271.0,77.78307658]
[1755869911314,0.66,4271.9,4271.0,77.78307658]
[1755869911523,2.34108872,4271.6,4271.0,77.78307658]
[1755869911726,3.0,4272.1,4271.0,77.78307658]
[1755869911871,2.34088274,4271.9,4271.0,77.78307658]
[1755869912075,0.50107911,4271.8,4271.0,77.78307658]
[1755869912304,0.66,4271.5,4271.0,77.78307658]
[1755869912521,2.34131722,4271.1,4271.0,77.78307658]
[1755869912724,6.00131722,4271.1,4271.0,77.41666658]
[1755869912927,6.50239633,4271.1,4271.0,77.41666658]
[1755869913539,18.91318508,4271.1,4271.0,71.29148602]
[1755869913743,49.53183415,4271.1,4271.0,71.29148602]
[1755869914034,38.41633242,4271.1,4271.0,71.29148602]
[1755869914244,37.71042007,4271.1,4271.0,71.29148602]
[1755869914420,38.08900124,4271.1,4271.0,71.29148602]
[1755869914608,37.1210454,4271.1,4271.0,71.29148602]
[1755869915007,7.1210454,4271.1,4271.0,71.29148602]
[1755869916205,37.71053948,4271.1,4271.0,71.29148602]
[1755869916606,38.54860722,4271.1,4271.0,71.29148602]
[1755869916952,37.71053948,4271.1,4271.0,71.29148602]
[1755869917244,37.71053948,4271.1,4271.0,70.02375413]
[1755869917406,37.71053948,4271.1,4271.0,67.65472374]
[1755869917736,48.27453948,4271.1,4271.0,67.35833967]
[1755869917949,3.0,4271.0,4270.1,0.004]
[1755869918101,21.50620352,4270.2,4270.1,0.004]
[1755869918295,22.13817671,4270.2,4270.1,0.004]
[1755869918502,63.17777671,4270.2,4270.1,0.004]
[1755869918699,5.34189975,4270.1,4267.3,0.4641]
[1755869918931,6.60244286,4268.9,4267.3,0.4641]
[1755869919252,34.89153354,4268.9,4267.8,0.4841]
[1755869919544,3.63197319,4268.9,4268.3,0.4681]
[1755869919739,5.97449702,4268.9,4268.3,0.004]
[1755869919923,4.29197319,4268.9,4268.3,0.004]
[1755869920419,4.16107911,4268.9,4268.3,0.004]
[1755869920618,3.50107911,4268.9,4268.3,0.004]
[1755869920810,3.50107911,4268.9,4268.8,0.4841]
[1755869921206,3.50107911,4268.9,4268.8,0.02]
[1755869922495,4.16107911,4268.9,4268.8,0.02]
[1755869923140,6.50360294,4268.9,4268.8,0.02]
[1755869923552,37.41544135,4268.9,4268.8,0.02]
[1755869924325,47.98544135,4268.9,4268.8,0.02]
[1755869924670,49.66533339,4268.9,4268.8,0.02]
[1755869924871,47.98544135,4268.9,4268.8,0.02]
[1755869925017,3.00279823,4268.4,4268.3,0.004]
[1755869925363,63.5467514,4268.4,4268.3,0.004]
[1755869925665,64.0183514,4268.4,4268.3,0.004]
[1755869926034,47.67951575,4268.4,4268.3,0.004]
[1755869927853,36.63491575,4268.4,4268.3,0.004]
[1755869928146,34.29211752,4268.4,4268.3,0.004]
[1755869928348,36.63491575,4268.4,4268.3,0.004]
[1755869928547,3.00296291,4268.1,4267.9,0.004]
[1755869928752,36.63508043,4268.1,4267.9,0.004]
[1755869928948,3.00318251,4267.7,4267.6,0.004]
[1755869929153,47.20830003,4267.7,4267.6,0.004]
[1755869929323,47.67990003,4267.7,4267.6,0.004]
[1755869930070,47.20750003,4267.7,4267.6,0.004]
[1755869930349,48.57438073,4267.7,4267.6,0.004]
[1755869930977,14.84870466,4267.7,4267.6,0.004]
[1755869931267,6.61888717,4267.7,4267.6,0.004]
[1755869931421,36.61888717,4267.7,4267.6,0.004]
[1755869931616,34.27570466,4267.7,4267.6,0.004]
[1755869931853,33.61570466,4267.7,4267.6,0.004]
[1755869932032,35.95888717,4267.7,4267.6,0.4681]
[1755869932232,4.27570466,4267.7,4267.6,0.004]
[1755869933063,0.61570466,4267.7,4267.6,0.4681]
[1755869933464,6.61888717,4267.7,4267.6,0.004]
[1755869933765,47.19188717,4267.7,4267.6,0.004]
[1755869934265,48.02667227,4267.7,4267.6,0.004]
[1755869934633,18.02667227,4267.7,4267.6,0.004]
[1755869935008,18.02579116,4267.7,4267.6,0.004]
[1755869935258,3.0035669,4267.0,4266.8,0.02]
[1755869935455,62.45807584,4267.0,4266.8,0.02]
[1755869935642,32.45807584,4267.0,4266.8,0.02]
[1755869935851,62.45807584,4267.0,4266.8,0.02]
[1755869936233,47.20997065,4267.0,4266.8,0.02]
[1755869936547,48.33039429,4267.0,4266.8,0.02]
[1755869936741,47.20995484,4267.0,4266.8,0.02]
[1755869936950,47.68155484,4267.0,4266.8,0.02]
[1755869937553,47.20995484,4267.0,4266.8,0.02]
[1755869937755,6.00362183,4266.9,4266.8,1e-08]
[1755869937928,3.00417121,4265.9,4265.8,0.02]
[1755869938139,62.46166434,4265.9,4265.8,0.02]
[1755869938365,51.88366434,4265.9,4265.8,0.02]
[1755869938531,3.00472086,4264.9,4263.9,0.4641]
[1755869938727,6.83868656,4264.9,4263.9,0.4641]
[1755869938928,47.51109997,4264.9,4263.8,0.024]
[1755869939146,47.21614738,4264.9,4263.8,0.024]
[1755869939355,47.64144738,4264.9,4263.8,0.024]
[1755869939558,47.51109997,4264.9,4263.8,0.024]
[1755869939748,47.81937163,4264.9,4263.8,0.024]
[1755869940153,47.21608727,4264.9,4263.8,0.024]
[1755869940947,47.81413711,4264.9,4263.8,0.024]
[1755869941148,47.81420785,4264.9,4263.8,0.024]
[1755869941534,47.38890785,4264.9,4263.8,0.024]
[1755869941762,47.21555447,4264.9,4263.8,0.024]
[1755869941964,0.66,4264.7,4263.8,0.024]
[1755869942161,6.00527076,4263.9,4263.8,0.024]
[1755869942468,36.50494633,4263.9,4263.8,0.024]
[1755869942846,6.50574633,4263.9,4263.8,0.4881]
[1755869943047,6.50574633,4263.9,4263.8,0.024]
[1755869943249,4.16047557,4263.9,4263.8,0.024]
[1755869943474,6.00527076,4263.9,4263.8,0.024]
[1755869943628,4.16023056,4263.9,4263.8,0.024]
[1755869944278,6.50550132,4263.9,4263.8,0.024]
[1755869944433,6.50550132,4263.9,4263.8,0.4881]
[1755869944434,3.50023056,4263.9,4263.8,0.4881]
[1755869945064,0.50023056,4263.9,4263.8,0.4881]
[1755869945266,2.34478588,4264.8,4263.8,0.4881]
[1755869945481,3.0,4264.6,4263.8,0.4881]
[1755869945779,0.5004192,4264.5,4263.8,0.4881]
[1755869946078,0.83398237,4265.0,4263.8,0.4881]
[1755869946264,0.83398237,4264.5,4263.8,0.024]
[1755869946468,1.49398237,4263.9,4263.8,0.024]
[1755869946681,6.83925313,4263.9,4263.8,0.024]
[1755869946985,7.33967233,4263.9,4263.8,0.024]
[1755869947295,37.33967233,4263.9,4263.8,0.024]
[1755869947884,47.68973066,4263.9,4263.8,0.024]
[1755869948184,36.50568996,4263.9,4263.8,0.024]
[1755869948393,4.1604192,4263.9,4263.8,0.024]
[1755869948592,7.34036674,4263.9,4263.8,0.024]
[1755869948742,34.1604192,4263.9,4263.8,0.024]
[1755869949251,6.50568996,4263.9,4263.8,0.024]
[1755869949452,4.99497401,4263.9,4263.8,0.024]
[1755869949660,0.83555481,4264.9,4263.8,0.4789]
[1755869949875,2.34481588,4264.8,4263.8,0.4789]
[1755869950077,0.66,4264.6,4263.8,0.4789]
[1755869950277,0.5005723,4264.6,4263.8,0.4789]
[1755869950767,0.001,4264.9,4263.8,0.4789]
[1755869951175,0.001,4264.9,4264.3,2.34504079]
[1755869951468,0.02,4265.8,4264.4,0.02344995]
[1755869951667,0.02,4265.8,4264.5,0.4549]
[1755869952158,0.02,4265.8,4264.6,0.02344885]
[1755869952600,0.02,4265.8,4264.7,0.4549]
[1755869953272,0.02,4265.8,4264.7,2.799712]
[1755869953463,0.02,4265.8,4264.8,0.2799712]
[1755869953659,0.001,4264.6,4263.8,0.024]
[1755869953859,0.001,4264.6,4264.5,2.34494079]
[1755869954302,0.001,4264.6,4264.5,2.79984079]
[1755869954466,0.001,4264.6,4264.5,0.4549]
[1755869954665,0.0002,4264.6,4264.5,0.4549]
[1755869957057,0.0002,4264.6,4264.5,3.1032787]
[1755869957259,0.0002,4264.6,4264.5,3.0798293]
[1755869957583,0.0002,4264.6,4264.5,0.4549]
[1755869958063,0.0002,4264.6,4264.5,0.4783494]
[1755869958260,0.0002,4264.6,4264.5,2.82329019]
[1755869958483,0.001,4265.5,4265.2,2.34453013]
[1755869958664,0.001,4265.5,4265.4,2.344446]
[1755869958985,0.001,4265.5,4265.4,2.5788906]
[1755869959166,0.001,4265.5,4265.4,3.0337906]
[1755869959877,0.001,4265.5,4265.4,0.6893446]
[1755869960085,0.001,4265.5,4265.4,2.799346]
[1755869960391,0.001,4265.5,4265.4,0.4549]
[1755869961575,0.001,4265.5,4265.4,2.799346]
[1755869962093,0.001,4265.5,4265.4,2.82279046]
[1755869962462,0.001,4265.5,4265.4,3.31607802]
[1755869962866,0.001,4265.5,4265.4,0.4549]
[1755869964198,0.001,4265.5,4265.4,2.799346]
[1755869964401,0.001,4265.5,4265.4,2.82279046]
[1755869964697,0.001,4265.5,4265.4,2.799346]
[1755869965297,0.001,4265.5,4265.4,0.4549]
[1755869965474,0.001,4265.5,4265.4,2.799346]
[1755869965805,0.001,4265.5,4265.4,3.31373345]
[1755869966011,0.001,4265.5,4265.4,3.33717791]
[1755869966372,0.001,4265.5,4265.4,3.31373345]
[1755869966985,0.0002,4265.5,4265.4,3.31373345]